bitfinex/quotes_BTCUSD_20220207
["timestamp","ask_amount","ask_price","bid_price","bid_amount"]
[1644198951210,0.46232085,42182.0,42180.0,0.059258]
[1644198951413,0.46232085,42182.0,42181.0,0.118513]
[1644198951616,0.24013442,42182.0,42181.0,0.118513]
[1644198952489,0.24006007,42182.0,42181.0,0.166013]
[1644198952888,0.24006007,42182.0,42181.0,0.216013]
[1644198954486,0.24006007,42182.0,42181.0,0.211013]
[1644198955823,0.08593394,42183.0,42182.0,1.0]
[1644198956020,0.08593394,42183.0,42182.0,1.225232]
[1644198956215,0.08593394,42183.0,42182.0,1.325232]
[1644198956415,0.08593394,42183.0,42182.0,1.49066931]
[1644198958718,0.0193296,42188.0,42184.0,0.059241]
[1644198958925,0.02246633,42189.0,42185.0,0.0475]
[1644198959319,0.02199944,42189.0,42185.0,0.0475]
[1644198959562,0.02246638,42189.0,42185.0,0.0475]
[1644198959764,0.02246638,42189.0,42185.0,0.106737]
[1644198959963,0.02246638,42189.0,42186.0,0.118485]
[1644198960167,0.26246638,42189.0,42187.0,0.0475]
[1644198960363,0.26199944,42189.0,42187.0,0.0475]
[1644198960965,0.24,42189.0,42187.0,0.0475]
[1644198961367,0.00046694,42190.0,42188.0,0.059242]
[1644198961566,0.01957139,42194.0,42189.0,0.0475]
[1644198961769,0.01957139,42194.0,42190.0,0.19158725]
[1644198961968,0.01957139,42194.0,42191.0,1.0475]
[1644198962170,0.01957139,42194.0,42192.0,0.177683]
[1644198962368,0.01957139,42194.0,42193.0,0.0475]
[1644198962568,0.01957139,42194.0,42193.0,0.10673]
[1644198962969,0.068053,42200.0,42193.0,0.10673]
[1644198964311,0.00014036,42199.0,42194.0,0.059233]
[1644198964514,0.00014036,42199.0,42195.0,0.0475]
[1644198964715,0.00014036,42199.0,42196.0,0.059237]
[1644198965013,0.00014036,42199.0,42197.0,0.0475]
[1644198965213,0.05,42200.0,42197.0,0.0475]
[1644198965616,0.05043438,42200.0,42197.0,0.106737]
[1644198966415,0.05,42200.0,42197.0,0.106737]
[1644198968460,0.05,42200.0,42197.0,0.0475]
[1644198968860,0.25619379,42202.0,42197.0,0.0475]
[1644198969061,0.26264812,42201.0,42197.0,0.0475]
[1644198969261,0.00043438,42201.0,42197.0,0.0475]
[1644198969460,0.21387334,42198.0,42197.0,0.0475]
[1644198971011,0.26387334,42198.0,42197.0,0.0475]
[1644198971211,0.21387334,42198.0,42197.0,0.0475]
[1644198971814,0.00036838,42200.0,42197.0,0.0475]
[1644198972012,0.00013001,42199.0,42197.0,0.0475]
[1644198972213,0.12,42198.0,42197.0,0.0475]
[1644198972611,0.07,42198.0,42197.0,0.0475]
[1644198972813,0.12,42198.0,42197.0,0.0475]
[1644198973011,0.33065447,42198.0,42197.0,0.0475]
[1644198974011,0.33065447,42198.0,42195.0,0.118476]
[1644198975662,0.38065447,42198.0,42195.0,0.118476]
[1644198976861,0.38078441,42198.0,42195.0,0.118476]
[1644198977472,0.25995694,42197.0,42190.0,0.118495]
[1644198977663,0.24746983,42191.0,42190.0,0.118495]
[1644198978064,0.24746983,42191.0,42189.0,0.1475]
[1644198978326,0.20550813,42190.0,42187.0,0.118502]
[1644198978525,0.05,42188.0,42187.0,0.118502]
[1644198979622,0.20550813,42190.0,42187.0,0.118502]
[1644198979822,0.05,42188.0,42187.0,0.118502]
[1644198981127,0.05,42188.0,42185.0,0.00052514]
[1644198982162,0.05,42188.0,42184.0,0.059263]
[1644198982363,0.31477344,42190.0,42184.0,0.05978815]
[1644198982562,0.25550813,42190.0,42184.0,0.05978815]
[1644198982763,0.05,42185.0,42184.0,0.05978815]
[1644198983163,0.04991416,42185.0,42184.0,0.05978815]
[1644198983363,0.07,42188.0,42184.0,0.059263]
[1644198983563,0.05,42187.0,42184.0,0.059263]
[1644198983766,0.07,42188.0,42184.0,0.059263]
[1644198983964,0.04991416,42185.0,42184.0,0.059263]
[1644198984167,0.07,42188.0,42184.0,0.059263]
[1644198984664,0.04991416,42187.0,42184.0,0.0597881]
[1644198984865,0.05,42187.0,42184.0,0.0597881]
[1644198985266,0.07,42188.0,42184.0,0.0597881]
[1644198985667,0.04991416,42186.0,42184.0,0.059263]
[1644198985914,0.04991416,42186.0,42184.0,0.0597881]
[1644198986915,0.04991416,42186.0,42184.0,0.059263]
[1644198987215,0.04991416,42186.0,42184.0,0.059262]
[1644198989573,0.04991416,42186.0,42183.0,0.00052513]
[1644198990569,0.04991416,42186.0,42181.0,0.00026509]
[1644198990768,0.25836629,42183.0,42182.0,0.00052513]
[1644198990969,0.30828045,42183.0,42182.0,0.00052513]
[1644198991369,0.04991416,42183.0,42182.0,0.00052513]
[1644198991577,0.04991416,42183.0,42182.0,0.05978913]
[1644198991769,0.04991416,42183.0,42182.0,0.059264]
[1644198993415,0.04991416,42183.0,42181.0,0.11878509]
[1644198993617,0.04991416,42183.0,42181.0,0.11852]
[1644198997064,0.05004951,42183.0,42181.0,0.11852]
[1644199005564,0.05004951,42183.0,42181.0,0.11843614]
[1644199007467,0.05004951,42183.0,42180.0,0.11930924]
[1644199007667,0.05004951,42183.0,42180.0,0.11904415]
[1644199008515,0.05004951,42183.0,42180.0,0.118519]
[1644199009417,0.05004951,42183.0,42180.0,0.11878409]
[1644199011115,0.05004951,42183.0,42180.0,0.118519]
[1644199011316,0.05004951,42183.0,42180.0,0.11878409]
[1644199012364,0.05004951,42183.0,42180.0,0.118519]
[1644199012565,0.05004951,42183.0,42180.0,0.11878409]
[1644199014068,0.05004951,42183.0,42180.0,0.00026509]
[1644199014267,0.05004951,42183.0,42179.0,0.00052516]
[1644199014472,0.05004951,42183.0,42178.0,0.00026509]
[1644199014473,0.04991416,42180.0,42178.0,0.00026509]
[1644199014670,0.2244782,42178.0,42176.0,0.00026509]
[1644199014868,0.2244782,42178.0,42175.0,0.00026509]
[1644199014869,0.04991416,42177.0,42175.0,0.00026509]
[1644199015068,0.04991416,42177.0,42174.0,0.00026509]
[1644199015268,0.04991416,42177.0,42173.0,0.00210095]
[1644199015470,0.04991416,42174.0,42173.0,0.00210095]
[1644199015670,0.04991416,42174.0,42171.0,0.00026509]
[1644199015671,0.31514402,42174.0,42171.0,0.00026509]
[1644199015920,0.31514402,42174.0,42168.0,0.00026509]
[1644199015921,0.19557707,42171.0,42168.0,0.00026509]
[1644199016120,0.19557707,42171.0,42170.0,0.00026509]
[1644199016318,0.29549123,42171.0,42167.0,0.00236629]
[1644199016719,0.29549123,42171.0,42167.0,0.059282]
[1644199016918,0.29549123,42171.0,42167.0,0.05954712]
[1644199018621,0.04991416,42168.0,42167.0,0.05954712]
[1644199018821,0.04991416,42168.0,42166.0,0.05691641]
[1644199019021,0.04991416,42168.0,42166.0,0.05665129]
[1644199019671,0.04991416,42168.0,42166.0,0.05165129]
[1644199020166,0.04991416,42169.0,42166.0,0.05165129]
[1644199020365,0.3050166,42169.0,42166.0,0.05191641]
[1644199020567,0.4065999,42169.0,42166.0,0.00026512]
[1644199020767,0.4065999,42169.0,42165.0,0.0005501]
[1644199020968,0.04991416,42166.0,42165.0,0.0005501]
[1644199021270,0.30719558,42166.0,42165.0,0.0005501]
[1644199021470,0.30415456,42166.0,42165.0,0.0005501]
[1644199021666,0.30415456,42166.0,42162.0,0.42]
[1644199021866,0.04991416,42163.0,42162.0,0.42]
[1644199022370,0.09991416,42163.0,42161.0,0.16586539]
[1644199022568,0.1,42163.0,42161.0,0.58586539]
[1644199022767,0.04991416,42162.0,42161.0,0.42]
[1644199022966,0.04991416,42162.0,42161.0,0.58586539]
[1644199023168,0.04991416,42162.0,42161.0,0.42]
[1644199023415,0.04991416,42162.0,42161.0,0.58086539]
[1644199023616,0.04991416,42162.0,42161.0,0.415]
[1644199023815,0.04991416,42162.0,42161.0,0.58086539]
[1644199024014,0.04991416,42162.0,42161.0,0.415]
[1644199024216,0.04991416,42162.0,42161.0,0.58086539]
[1644199025617,0.04991416,42162.0,42161.0,0.415]
[1644199025815,0.04991416,42162.0,42161.0,0.58086539]
[1644199026017,0.04991416,42162.0,42161.0,0.415]
[1644199026215,0.04991416,42162.0,42161.0,0.58086539]
[1644199026416,0.04991416,42162.0,42161.0,0.415]
[1644199026621,0.31736775,42162.0,42161.0,0.58086539]
[1644199026819,0.36736775,42162.0,42161.0,0.415]
[1644199027267,0.36736775,42162.0,42159.0,0.00051867]
[1644199027268,0.4266725,42162.0,42159.0,0.00051867]
[1644199027471,0.4859775,42162.0,42159.0,0.00051867]
[1644199027668,0.1686074,42161.0,42154.0,0.059305]
[1644199027870,0.1686074,42161.0,42158.0,0.00052574]
[1644199028069,0.04991416,42159.0,42158.0,0.00052574]
[1644199028270,0.62177375,42159.0,42158.0,0.00052574]
[1644199028471,0.95186675,42159.0,42158.0,0.00052574]
[1644199028870,0.19517386,42153.0,42147.0,0.118616]
[1644199029074,0.26275985,42148.0,42146.0,0.58639826]
[1644199029273,0.04991416,42151.0,42147.0,0.059312]
[1644199029472,0.04991416,42153.0,42149.0,0.12210624]
[1644199030273,0.21704564,42151.0,42150.0,0.059305]
[1644199030475,0.05930323,42152.0,42150.0,0.11861]
[1644199030676,0.05930323,42152.0,42150.0,0.11361]
[1644199030915,0.04991416,42151.0,42150.0,0.059305]
[1644199031116,0.04991416,42151.0,42149.0,0.12210624]
[1644199031117,0.3096218,42151.0,42149.0,0.12210624]
[1644199031316,0.25466859,42150.0,42149.0,0.12210624]
[1644199031814,0.25466859,42150.0,42148.0,0.00026507]
[1644199031815,1.22540931,42149.0,42148.0,0.00026507]
[1644199032018,1.22540931,42149.0,42141.0,0.09959793]
[1644199032019,1.0,42148.0,42141.0,0.09959793]
[1644199032215,0.25066037,42142.0,42140.0,0.00026509]
[1644199032415,0.28215083,42141.0,42135.0,0.16666335]
[1644199032718,0.38215083,42141.0,42139.0,0.00054138]
[1644199032915,0.53268072,42140.0,42139.0,0.00054138]
[1644199033315,0.81312216,42140.0,42139.0,0.00054138]
[1644199033715,0.81312216,42140.0,42135.0,0.05959409]
[1644199033916,0.81312216,42140.0,42135.0,0.059329]
[1644199033917,0.16857195,42137.0,42135.0,0.059329]
[1644199034116,0.16857195,42137.0,42135.0,0.05959409]
[1644199034317,0.26461128,42135.0,42134.0,0.00517839]
[1644199034571,0.26461128,42135.0,42134.0,0.0049133]
[1644199034771,0.52101892,42135.0,42134.0,0.0049133]
[1644199035172,0.57101892,42135.0,42132.0,0.00043271]
[1644199035374,0.30640764,42135.0,42132.0,0.00043271]
[1644199035572,0.3563218,42135.0,42132.0,0.00043271]
[1644199035772,0.240225,42133.0,42132.0,0.00043271]
[1644199035974,0.55469663,42133.0,42132.0,0.00043271]
[1644199036172,0.11868678,42132.0,42128.0,0.42]
[1644199036573,0.05,42131.0,42128.0,0.479337]
[1644199036973,0.05,42131.0,42128.0,0.42]
[1644199036974,0.05933672,42130.0,42128.0,0.42]
[1644199037475,0.10933672,42130.0,42128.0,0.52]
[1644199037672,0.05,42129.0,42128.0,0.52]
[1644199037875,0.05,42129.0,42128.0,0.495]
[1644199039121,0.12,42129.0,42128.0,0.495]
[1644199039822,0.07,42129.0,42128.0,0.495]
[1644199040222,0.07,42129.0,42128.0,0.49]
[1644199040624,0.32563796,42129.0,42128.0,0.49]
[1644199040923,0.07,42129.0,42128.0,0.49]
[1644199041124,0.07,42129.0,42128.0,0.49508692]
[1644199041824,0.12,42129.0,42128.0,0.49508692]
[1644199042271,0.1201317,42129.0,42128.0,0.49514797]
[1644199043270,0.1201317,42129.0,42128.0,0.49014797]
[1644199043770,0.36455897,42129.0,42128.0,0.49014797]
[1644199043973,0.1201317,42129.0,42128.0,0.49014797]
[1644199044172,0.37643949,42129.0,42128.0,0.49014797]
[1644199044371,0.37643949,42129.0,42128.0,0.39014797]
[1644199045472,0.81635365,42129.0,42127.0,0.06039124]
[1644199045679,0.31699875,42128.0,42121.0,0.10014184]
[1644199045927,0.31699875,42128.0,42121.0,0.00014184]
[1644199045928,0.04991416,42125.0,42121.0,0.00014184]
[1644199046126,0.27772778,42124.0,42121.0,0.00014184]
[1644199046328,0.04991416,42122.0,42121.0,0.00014184]
[1644199046526,0.30693978,42122.0,42121.0,0.00014184]
[1644199046825,0.30702562,42122.0,42121.0,0.00014184]
[1644199047025,0.35693978,42122.0,42121.0,0.00014184]
[1644199047227,0.05,42122.0,42121.0,0.00014184]
[1644199047525,0.30439503,42122.0,42121.0,0.00014184]
[1644199047925,0.05,42122.0,42121.0,0.00014184]
[1644199048129,0.10935003,42123.0,42121.0,0.00014184]
[1644199048530,0.05935003,42123.0,42121.0,0.00014184]
[1644199049126,0.10024847,42127.0,42121.0,0.05948384]
[1644199049327,0.07991652,42127.0,42121.0,0.05974805]
[1644199049773,0.12991652,42127.0,42121.0,0.05974805]
[1644199050674,0.12991652,42127.0,42122.0,0.00054878]
[1644199050876,0.12991652,42127.0,42122.0,0.00081299]
[1644199051273,0.1093359,42127.0,42122.0,0.00081299]
[1644199051673,0.1093359,42127.0,42123.0,0.0475]
[1644199051876,0.1093359,42127.0,42123.0,0.10710221]
[1644199052073,0.1093359,42127.0,42123.0,0.106838]
[1644199053073,0.1093359,42127.0,42123.0,0.10738614]
[1644199053524,0.1093359,42127.0,42123.0,0.10238614]
[1644199054121,0.1093359,42127.0,42123.0,0.101838]
[1644199054322,0.0593359,42127.0,42123.0,0.10238614]
[1644199055324,0.0593359,42127.0,42123.0,0.101838]
[1644199055523,0.0593359,42127.0,42123.0,0.10238614]
[1644199056225,0.00113559,42126.0,42123.0,0.10238614]
[1644199056625,0.00113559,42126.0,42123.0,0.101838]
[1644199056834,0.00113559,42126.0,42123.0,0.0475]
[1644199057074,0.00113559,42126.0,42123.0,0.04776421]
[1644199057574,0.00125931,42126.0,42123.0,0.04776421]
[1644199057975,0.00125931,42126.0,42123.0,0.0475]
[1644199058176,0.00125931,42126.0,42123.0,0.04776421]
[1644199059175,0.25759902,42126.0,42123.0,0.0475]
[1644199059375,0.00125931,42126.0,42123.0,0.04776421]
[1644199060276,0.00125931,42126.0,42123.0,0.0475]
[1644199060476,0.00125931,42126.0,42123.0,0.04776421]
[1644199060920,0.00125931,42126.0,42123.0,0.10710121]
[1644199061519,0.00125931,42126.0,42123.0,0.106837]
[1644199061719,0.00125931,42126.0,42123.0,0.10710121]
[1644199061920,0.24111601,42126.0,42123.0,0.10710121]
[1644199062822,0.24111601,42126.0,42123.0,0.106837]
[1644199063021,0.24111601,42126.0,42123.0,0.10710121]
[1644199064021,0.24111601,42126.0,42123.0,0.106837]
[1644199064222,0.24111601,42126.0,42123.0,0.10710121]
[1644199065268,0.00125931,42126.0,42123.0,0.10710121]
[1644199065969,0.00125931,42126.0,42123.0,0.106837]
[1644199066176,0.00125931,42126.0,42123.0,0.10710108]
[1644199066373,0.00125931,42126.0,42122.0,0.00052357]
[1644199066374,0.75,42123.0,42122.0,0.00052357]
[1644199066674,1.12535381,42123.0,42122.0,0.00052357]
[1644199066871,0.42535381,42123.0,42122.0,0.00052357]
[1644199067272,0.62290344,42123.0,42121.0,0.00014184]
[1644199067473,0.25876941,42122.0,42121.0,0.00014184]
[1644199067673,0.35689975,42123.0,42121.0,0.00014184]
[1644199068824,0.35689975,42123.0,42121.0,0.05949484]
[1644199069220,0.25689975,42123.0,42121.0,0.05949484]
[1644199070523,0.36889975,42123.0,42121.0,0.05949484]
[1644199072366,0.26021774,42122.0,42121.0,0.00014184]
[1644199072564,0.41881391,42123.0,42121.0,0.00014184]
[1644199072765,0.41881391,42123.0,42121.0,0.00020382]
[1644199072766,0.00012879,42122.0,42121.0,0.00020382]
[1644199072966,0.25637879,42122.0,42121.0,0.00020382]
[1644199074468,0.00012879,42122.0,42121.0,0.00020382]
[1644199074869,0.58194561,42122.0,42121.0,0.00020382]
[1644199075269,0.32234279,42122.0,42121.0,0.00020382]
[1644199077215,0.50040708,42122.0,42120.0,0.00028368]
[1644199078118,0.75671698,42122.0,42121.0,6.188e-05]
[1644199079567,0.50040708,42122.0,42121.0,6.188e-05]
[1644199080769,0.75637168,42122.0,42121.0,6.188e-05]
[1644199081582,0.75637168,42122.0,42113.0,0.42]
[1644199081583,1.0,42120.0,42109.0,0.059368]
[1644199081771,0.29421881,42110.0,42099.0,0.1146]
[1644199081971,0.293841,42109.0,42107.0,0.00025998]
[1644199082170,0.293841,42109.0,42106.0,0.00219339]
[1644199082372,0.20476691,42108.0,42106.0,0.00219339]
[1644199082571,0.2664735,42107.0,42106.0,0.00219339]
[1644199082774,0.3164735,42107.0,42106.0,0.00219339]
[1644199083072,0.05,42107.0,42104.0,0.00025998]
[1644199083324,0.05,42108.0,42103.0,0.06062814]
[1644199083518,0.26620137,42107.0,42103.0,0.00125214]
[1644199083717,0.54433933,42107.0,42103.0,0.00099216]
[1644199084121,0.04991416,42105.0,42103.0,0.00099216]
[1644199084317,0.04991416,42105.0,42103.0,0.00139872]
[1644199084518,0.26977433,42104.0,42103.0,0.00139872]
[1644199084719,0.36977433,42104.0,42103.0,0.00139872]
[1644199085116,0.62761929,42104.0,42103.0,0.00139872]
[1644199085317,0.62761929,42104.0,42103.0,0.00099216]
[1644199085521,0.62761929,42104.0,42101.0,0.01036407]
[1644199085722,0.62761929,42104.0,42088.0,0.08650334]
[1644199085723,1.0,42101.0,42088.0,0.08650334]
[1644199085922,0.31129042,42089.0,42088.0,0.08650334]
[1644199086118,0.31129042,42089.0,42080.0,0.21054604]
[1644199086119,0.65357358,42089.0,42080.0,0.0011]
[1644199086319,0.04991416,42083.0,42080.0,0.0011]
[1644199086523,0.18992057,42075.0,42068.0,0.01926603]
[1644199086725,0.23983473,42075.0,42068.0,0.01926603]
[1644199086922,0.23992057,42075.0,42068.0,0.01926603]
[1644199087176,0.05942433,42074.0,42073.0,0.0999]
[1644199087374,0.05942433,42074.0,42068.0,0.01426603]
[1644199088177,0.02175988,42075.0,42068.0,0.01426603]
[1644199088577,0.02175988,42075.0,42071.0,0.05]
[1644199088778,0.02175988,42075.0,42072.0,0.38258713]
[1644199088979,0.02175988,42075.0,42073.0,0.35143656]
[1644199089179,0.02175988,42075.0,42074.0,0.3212759]
[1644199089383,0.00014379,42097.0,42083.0,0.06424643]
[1644199089583,0.00014379,42097.0,42087.0,0.059388]
[1644199089779,0.00014379,42097.0,42089.0,0.5933]
[1644199089978,0.00014379,42097.0,42091.0,0.118765]
[1644199090178,0.04991416,42098.0,42092.0,0.0475]
[1644199090380,0.19423709,42096.0,42092.0,0.0475]
[1644199090838,0.25362621,42096.0,42092.0,0.106883]
[1644199091227,0.19423709,42096.0,42093.0,0.059387]
[1644199091430,0.23117392,42107.0,42094.0,0.0475]
[1644199091629,0.00047955,42097.0,42094.0,0.0475]
[1644199091828,0.00047955,42097.0,42095.0,0.31688757]
[1644199092032,0.00047955,42097.0,42096.0,0.0475]
[1644199092232,0.00047955,42097.0,42096.0,1.03651903]
[1644199092430,0.00047955,42097.0,42096.0,1.13651903]
[1644199092631,0.00013822,42107.0,42098.0,0.059365]
[1644199092834,0.00013822,42107.0,42106.0,0.5933]
[1644199093033,0.00013822,42107.0,42106.0,0.6408]
[1644199093231,0.00013822,42107.0,42106.0,0.800167]
[1644199093632,0.00013822,42107.0,42106.0,0.700167]
[1644199093834,0.00013822,42107.0,42106.0,0.6408]
[1644199093836,0.05005238,42107.0,42106.0,0.6408]
[1644199094133,0.20780532,42109.0,42106.0,0.6408]
[1644199094333,0.05013488,42109.0,42106.0,0.7408]
[1644199094782,0.00013488,42109.0,42106.0,0.7408]
[1644199094982,2.1983591,42112.0,42106.0,0.7408]
[1644199095183,0.00044959,42110.0,42106.0,0.7408]
[1644199095383,0.00044959,42110.0,42106.0,0.800166]
[1644199095583,0.00044959,42110.0,42106.0,0.818893]
[1644199095785,0.04991416,42108.0,42106.0,0.6408]
[1644199096186,0.37047646,42111.0,42106.0,0.6408]
[1644199096486,0.00044959,42109.0,42107.0,0.059363]
[1644199096685,0.00044959,42109.0,42108.0,0.0475]
[1644199097284,0.32047646,42111.0,42108.0,0.0475]
[1644199097485,0.00014121,42112.0,42108.0,0.0475]
[1644199097785,0.00043662,42111.0,42108.0,0.106865]
[1644199097984,0.05979981,42111.0,42108.0,0.106865]
[1644199098185,0.215349,42108.0,42107.0,0.059363]
[1644199098824,0.215349,42108.0,42105.0,0.218727]
[1644199098825,0.215349,42108.0,42105.0,0.178089]
[1644199099022,0.215349,42108.0,42106.0,0.0475]
[1644199099222,0.21548703,42108.0,42106.0,0.0475]
[1644199099423,0.21548703,42108.0,42106.0,0.04738254]
[1644199102080,0.33423735,42108.0,42105.0,0.00025934]
[1644199102282,0.21548703,42108.0,42106.0,0.0475]
[1644199102477,0.21548703,42108.0,42107.0,0.0475]
[1644199105479,0.1632227,42108.0,42107.0,0.0475]
[1644199107027,0.14344871,42108.0,42107.0,0.0475]
[1644199112179,0.19336287,42108.0,42107.0,0.0475]
[1644199112380,0.380093,42107.0,42105.0,0.00025934]
[1644199112579,0.330093,42105.0,42104.0,0.00025934]
[1644199112781,0.23783192,42101.0,42099.0,0.00025934]
[1644199112977,0.26638795,42100.0,42098.0,0.00025934]
[1644199113179,0.31630211,42100.0,42097.0,0.00625934]
[1644199113449,0.36630211,42100.0,42097.0,0.00625934]
[1644199114447,0.42569189,42100.0,42097.0,0.00625934]
[1644199116046,0.059395,42099.0,42097.0,0.00625934]
[1644199116349,0.32805439,42098.0,42097.0,0.006]
[1644199116548,0.32805439,42098.0,42097.0,0.00625934]
[1644199116549,0.37805439,42098.0,42097.0,0.00625934]
[1644199116746,0.37805439,42098.0,42097.0,0.006]
[1644199120182,0.1,42098.0,42097.0,0.006]
[1644199120586,0.05,42098.0,42097.0,0.006]
[1644199120836,0.26083466,42098.0,42097.0,0.006]
[1644199121226,0.31083466,42098.0,42097.0,0.006]
[1644199121628,0.05108658,42098.0,42097.0,0.006]
[1644199121827,0.00108658,42098.0,42097.0,0.006]
[1644199122028,0.27104194,42098.0,42097.0,0.006]
[1644199122230,0.37104194,42098.0,42097.0,0.006]
[1644199122429,0.05940096,42096.0,42093.0,0.00052206]
[1644199122631,0.25291948,42090.0,42085.0,0.118788]
[1644199122829,0.16880222,42093.0,42085.0,0.218788]
[1644199123030,0.04991416,42088.0,42085.0,0.118788]
[1644199123235,0.059407,42090.0,42084.0,0.0214373]
[1644199123430,0.14991416,42093.0,42084.0,0.0214373]
[1644199123630,0.05940171,42088.0,42082.0,0.0021254]
[1644199123829,0.05940171,42088.0,42081.0,0.24804178]
[1644199124031,0.05940171,42088.0,42086.0,0.00053127]
[1644199124432,0.05940171,42088.0,42086.0,0.05992927]
[1644199124870,0.05940171,42088.0,42086.0,0.059398]
[1644199127273,0.05940171,42088.0,42085.0,0.11930608]
[1644199127274,0.04991416,42087.0,42085.0,0.11930608]
[1644199127876,0.09991416,42087.0,42085.0,0.00052008]
[1644199128330,0.14991416,42087.0,42085.0,0.00052008]
[1644199128527,0.25,42086.0,42073.0,0.19019959]
[1644199128724,0.25,42086.0,42079.0,0.118806]
[1644199128725,0.22763965,42083.0,42079.0,0.118806]
[1644199128924,0.11882036,42083.0,42079.0,0.118806]
[1644199129424,0.04991416,42082.0,42079.0,0.118806]
[1644199129625,0.11882036,42083.0,42079.0,0.118806]
[1644199130025,0.17823032,42083.0,42079.0,0.118806]
[1644199130228,0.05940996,42083.0,42079.0,0.118806]
[1644199131227,0.05940996,42083.0,42079.0,0.11932802]
[1644199131828,0.25,42086.0,42079.0,0.54877302]
[1644199132078,0.25,42086.0,42085.0,0.06364895]
[1644199132277,0.25,42086.0,42085.0,0.0475]
[1644199132877,0.25,42086.0,42085.0,0.30925188]
[1644199133379,0.25,42086.0,42085.0,0.46863588]
[1644199134981,0.25,42086.0,42085.0,0.78763394]
[1644199136626,0.25,42086.0,42085.0,0.46863588]
[1644199138731,0.25013648,42086.0,42085.0,0.46863588]
[1644199153132,0.25001956,42086.0,42085.0,0.46863588]
[1644199154677,0.07,42088.0,42086.0,1.0]
[1644199154878,0.07,42088.0,42086.0,1.1]
[1644199155083,0.3772008,42106.0,42094.0,0.04964136]
[1644199155278,0.07124947,42106.0,42098.0,0.5933]
[1644199155477,0.1237,42117.0,42105.0,0.33053777]
[1644199155779,0.1211,42118.0,42098.0,0.5933]
[1644199155780,0.23650219,42115.0,42107.0,0.5933]
[1644199155977,0.23650219,42115.0,42107.0,0.88666078]
[1644199156179,0.001,42118.0,42115.0,1.0]
[1644199156381,0.12969099,42129.0,42118.0,1.0]
[1644199156382,0.011,42129.0,42118.0,1.0]
[1644199156577,0.011,42129.0,42128.0,0.08539562]
[1644199156782,0.011,42129.0,42128.0,0.72619562]
[1644199157177,0.001,42131.0,42129.0,1.19217901]
[1644199157377,0.001,42131.0,42130.0,0.31315468]
[1644199157577,0.01,42139.0,42130.0,0.95395468]
[1644199157778,0.01,42139.0,42138.0,0.5933]
[1644199157976,0.01,42139.0,42138.0,0.6408]
[1644199158177,0.001,42140.0,42138.0,0.7408]
[1644199158430,0.001,42140.0,42139.0,0.5933]
[1644199158627,0.001,42140.0,42139.0,0.6408]
[1644199158831,0.001,42140.0,42139.0,0.7408]
[1644199160028,0.001,42142.0,42139.0,0.7408]
[1644199160029,0.00047858,42142.0,42139.0,0.74788584]
[1644199160230,0.00047858,42142.0,42140.0,0.059316]
[1644199160429,0.00047858,42142.0,42141.0,0.0475]
[1644199161030,0.01,42149.0,42143.0,0.059317]
[1644199161232,0.04291416,42144.0,42143.0,0.059317]
[1644199161434,0.04291416,42144.0,42143.0,0.0475]
[1644199161435,0.04339274,42144.0,42143.0,0.0475]
[1644199161632,0.62414131,42144.0,42143.0,0.0475]
[1644199161832,1.00423431,42144.0,42138.0,0.0475]
[1644199162082,0.330093,42143.0,42138.0,0.0475]
[1644199162279,0.04291416,42139.0,42138.0,0.0475]
[1644199163282,0.09291416,42139.0,42138.0,0.0475]
[1644199163683,0.6838261,42139.0,42138.0,0.0475]
[1644199163883,0.6838261,42139.0,42133.0,0.0475]
[1644199164084,0.37535782,42134.0,42133.0,0.0475]
[1644199164284,0.62967589,42134.0,42133.0,0.0475]
[1644199164887,0.62967589,42134.0,42125.0,0.15]
[1644199164888,0.20633488,42127.0,42125.0,0.15]
[1644199165087,0.04291416,42127.0,42125.0,0.15]
[1644199165285,0.10226434,42127.0,42121.0,0.059347]
[1644199165485,0.04291416,42124.0,42121.0,0.059347]
[1644199165688,0.04291416,42124.0,42122.0,0.21955329]
[1644199165928,0.05935018,42127.0,42121.0,0.059347]
[1644199165929,0.30797238,42126.0,42121.0,0.059347]
[1644199166128,0.23464052,42125.0,42121.0,0.059347]
[1644199166928,0.28416194,42125.0,42121.0,0.059347]
[1644199167128,0.28416194,42125.0,42117.0,0.109354]
[1644199167129,0.25528587,42118.0,42117.0,0.109354]
[1644199167333,0.25528587,42118.0,42113.0,0.25670355]
[1644199167334,0.5285945,42118.0,42113.0,0.25670355]
[1644199167531,0.30528587,42118.0,42113.0,0.25670355]
[1644199167728,0.05,42117.0,42113.0,0.236498]
[1644199168228,0.30528587,42118.0,42113.0,0.46082759]
[1644199168529,0.00047858,42117.0,42113.0,0.118704]
[1644199168730,0.00047858,42117.0,42113.0,0.218704]
[1644199168931,0.00047858,42117.0,42113.0,0.118704]
[1644199169329,0.36465025,42118.0,42113.0,0.118704]
[1644199169589,0.00047858,42117.0,42115.0,0.22860673]
[1644199169787,0.00047858,42117.0,42115.0,0.28796573]
[1644199170186,0.26425409,42117.0,42115.0,0.059359]
[1644199170387,0.04291416,42116.0,42113.0,0.1]
[1644199170586,0.04291416,42116.0,42111.0,0.118724]
[1644199170787,0.04291416,42112.0,42111.0,0.118724]
[1644199171387,0.04291416,42112.0,42111.0,0.18459527]
[1644199172490,0.04291416,42112.0,42111.0,0.188724]
[1644199172987,0.04291416,42112.0,42111.0,0.39764501]
[1644199173427,0.00047738,42114.0,42111.0,0.49764501]
[1644199173828,0.04291416,42112.0,42111.0,0.49764501]
[1644199174026,0.00047738,42114.0,42111.0,0.49764501]
[1644199174228,0.04291416,42112.0,42111.0,0.49764501]
[1644199175628,0.00047858,42114.0,42111.0,0.49764501]
[1644199175828,0.04291416,42112.0,42111.0,0.49764501]
[1644199177786,0.11873615,42120.0,42111.0,0.49764501]
[1644199177787,0.04291416,42120.0,42111.0,0.62344385]
[1644199177981,0.04124089,42125.0,42117.0,0.059347]
[1644199178280,0.30591857,42125.0,42118.0,0.118684]
[1644199178479,0.30168664,42125.0,42118.0,0.118684]
[1644199178682,0.30168664,42125.0,42119.0,0.26986746]
[1644199178882,0.04124089,42125.0,42119.0,0.26986746]
[1644199179082,0.04137352,42125.0,42123.0,0.07067578]
[1644199179282,0.04137352,42125.0,42124.0,0.059342]
[1644199179882,0.00013263,42125.0,42124.0,0.059342]
[1644199182530,0.00013263,42125.0,42124.0,0.129342]
[1644199184031,0.00027756,42127.0,42124.0,0.13642784]
[1644199184333,0.00027756,42127.0,42126.0,0.2525729]
[1644199184979,0.00013348,42127.0,42126.0,0.2525729]